bitfinex-derivatives/quotes_SOLF0:USTF0_20241025
["timestamp","ask_amount","ask_price","bid_price","bid_amount"]
[1729845995533,8.00861583,172.79,172.75,1.44846308]
[1729845995746,8.00861583,172.79,172.76,1.44846308]
[1729845995943,8.00861583,172.79,172.73,8.00861583]
[1729845996247,8.00861583,172.79,172.74,3.76600716]
[1729845996446,8.00861583,172.79,172.76,2.8957]
[1729845996939,8.00861583,172.79,172.77,1.44846395]
[1729845997136,8.00861583,172.78,172.73,8.00861583]
[1729845997344,10.90401583,172.78,172.74,6.66217457]
[1729845997645,10.90401583,172.78,172.75,3.76617457]
[1729845997646,8.00861583,172.78,172.75,3.76617457]
[1729845997843,8.00861583,172.78,172.76,1.44852868]
[1729845998043,8.00861583,172.78,172.77,1.44852868]
[1729845998243,8.00861583,172.78,172.72,8.00861583]
[1729845998441,8.00861583,172.78,172.77,1.44853091]
[1729846000253,8.00861583,172.78,172.61,4.34538924]
[1729846000447,8.00861583,172.76,172.71,8.00861583]
[1729846000654,8.00861583,172.76,172.72,2.31765102]
[1729846000946,8.00861583,172.76,172.73,2.31765102]
[1729846001148,8.00861583,172.76,172.74,2.31765102]
[1729846001339,8.00861583,172.76,172.71,8.00861583]
[1729846001540,8.00861583,172.76,172.74,2.896]
[1729846003561,8.00861583,172.76,172.73,2.8961]
[1729846003861,8.00861583,172.76,172.74,2.31777331]
[1729846004056,8.00861583,172.76,172.73,2.8961]
[1729846004257,8.00861583,172.76,172.74,2.31777331]
[1729846004458,8.00861583,172.76,172.73,2.8961]
[1729846004759,8.00861583,172.76,172.74,2.31777136]
[1729846004956,8.00861583,172.75,172.69,8.00861583]
[1729846005162,8.00861583,172.75,172.7,2.31789883]
[1729846005356,7.7345374,172.79,172.71,2.31789883]
[1729846005557,8.00861583,172.73,172.72,2.31789883]
[1729846005961,8.00861583,172.73,172.65,4.8]
[1729846006169,4.8,172.75,172.65,4.8]
[1729846006170,8.00861583,172.72,172.66,8.00861583]
[1729846007361,10.90511583,172.72,172.68,2.897]
[1729846007563,8.00861583,172.72,172.68,2.897]
[1729846007765,8.00861583,172.71,172.68,2.897]
[1729846008465,8.00861583,172.71,172.65,8.00861583]
[1729846008663,8.00861583,172.71,172.67,2.8972]
[1729846009259,10.90521583,172.71,172.67,2.8972]
[1729846009662,10.90521583,172.71,172.68,2.8971]
[1729846010871,15.48521583,172.71,172.68,2.8971]
[1729846011165,12.58861583,172.71,172.68,2.8971]
[1729846012371,8.00861583,172.69,172.62,4.58]
[1729846012565,8.00861583,172.69,172.64,8.00861583]
[1729846012765,8.00861583,172.69,172.65,1.4490693]
[1729846012966,8.00861583,172.69,172.66,1.4490693]
[1729846013163,8.00861583,172.69,172.67,1.4490693]
[1729846013362,8.00861583,172.69,172.63,8.00861583]
[1729846013562,8.00861583,172.69,172.64,1.44910414]
[1729846013869,8.00861583,172.69,172.65,1.44910414]
[1729846014070,8.00861583,172.69,172.66,4.34650414]
[1729846014265,8.00861583,172.69,172.66,2.8974]
[1729846014768,8.00861583,172.68,172.59,2.4228]
[1729846014974,4.58,172.71,172.6,1.44916031]
[1729846014975,8.00861583,172.66,172.6,1.44916031]
[1729846015173,8.00861583,172.66,172.61,9.45777614]
[1729846015372,8.00861583,172.66,172.62,1.44916031]
[1729846015677,8.00861583,172.66,172.63,1.44916031]
[1729846015872,8.00861583,172.66,172.64,2.8976]
[1729846017463,1.1815,172.68,172.64,2.8976]
[1729846017661,1.1815,172.68,172.65,2.8976]
[1729846017662,8.00861583,172.67,172.65,2.8976]
[1729846017866,8.00861583,172.66,172.42,38.61310724]
[1729846018066,8.00861583,172.64,172.58,8.00861583]
[1729846018267,8.00861583,172.63,172.59,1.4493738]
[1729846018464,8.00861583,172.63,172.6,4.3476738]
[1729846018670,8.00861583,172.63,172.6,2.8983]
[1729846019270,2.8978,172.64,172.6,2.8983]
[1729846019271,8.00861583,172.62,172.6,2.8983]
[1729846020364,8.00861583,172.62,172.54,4.58]
[1729846020572,8.00861583,172.62,172.59,2.8985]
[1729846021777,8.00861583,172.62,172.58,2.8987]
[1729846022573,7.478,172.63,172.57,2.8989]
[1729846022574,8.00861583,172.6,172.57,2.8989]
[1729846022768,8.00861583,172.59,172.57,2.8989]
[1729846022974,8.00861583,172.58,172.55,1.44968394]
[1729846023272,8.00861583,172.58,172.55,2.8991]
[1729846023468,2.83260858,172.68,172.48,4.12259644]
[1729846023671,337.0,172.72,172.62,2.898]
[1729846023672,8.00861583,172.65,172.62,2.898]
[1729846023875,4.58,172.66,172.59,8.00861583]
[1729846024074,4.58,172.66,172.61,8.00861583]
[1729846024075,8.00861583,172.66,172.61,8.00861583]
[1729846024465,4.58,172.68,172.61,8.00861583]
[1729846024673,12.58861583,172.68,172.63,8.00861583]
[1729846024978,8.00861583,172.67,172.64,2.8976]
[1729846026280,8.00861583,172.67,172.61,8.00861583]
[1729846026281,4.58,172.68,172.61,8.00861583]
[1729846026476,8.00861583,172.67,172.61,8.00861583]
[1729846026980,4.58,172.68,172.65,2.8974]
[1729846027279,4.63,172.66,172.65,2.8974]
[1729846027670,15.53601583,172.66,172.61,2.8982]
[1729846027878,8.00861583,172.64,172.61,2.8982]
[1729846028081,8.00861583,172.64,172.58,9.45805438]
[1729846028279,8.00861583,172.64,172.58,8.00861583]
[1729846029584,4.63,172.66,172.58,8.00861583]
[1729846029585,8.00861583,172.63,172.59,2.8984]
[1729846029877,4.63,172.66,172.56,4.58]
[1729846029878,8.00861583,172.61,172.56,8.00861583]
[1729846030079,8.00861583,172.61,172.56,9.45821746]
[1729846030581,8.00861583,172.61,172.59,2.8985]
[1729846030781,8.00861583,172.6,172.55,8.00861583]
[1729846030979,4.58,172.64,172.54,1.44960309]
[1729846030980,8.00861583,172.58,172.54,1.44960309]
[1729846031277,8.00861583,172.58,172.53,1.44960309]
[1729846031480,8.00861583,172.58,172.56,2.8991]
[1729846032485,8.00861583,172.57,172.54,2.8993]
[1729846032677,8.00861583,172.55,172.54,2.8993]
[1729846033281,8.00861583,172.55,172.53,2.8995]
[1729846033683,8.00861583,172.54,172.53,2.8995]
[1729846034180,8.00861583,172.54,172.49,1.44995614]
[1729846034384,8.00861583,172.51,172.5,2.9001]
[1729846034686,4.58,172.56,172.45,10.40861583]
[1729846034687,8.00861583,172.52,172.47,8.00861583]
[1729846035779,8.00861583,172.52,172.45,3.85025379]
[1729846035973,8.00861583,172.52,172.46,8.00861583]
[1729846036783,7.4792,172.56,172.51,2.8999]
[1729846036976,8.00861583,172.54,172.45,3.85040441]
[1729846037177,8.00861583,172.54,172.48,8.00861583]
[1729846037373,12.60861583,172.56,172.53,2.8995]
[1729846037579,12.60861583,172.56,172.5,8.00861583]
[1729846038179,3.7007,172.59,172.52,8.00861583]
[1729846038381,3.7007,172.59,172.46,1.2277]
[1729846038382,4.6,172.58,172.53,8.00861583]
[1729846038679,15.09141583,172.59,172.53,8.00861583]
[1729846039378,8.00861583,172.58,172.57,2.8989]
[1729846040280,7.0828,172.59,172.57,2.8989]
[1729846041081,7.0828,172.59,172.56,2.8991]
[1729846041985,7.0828,172.59,172.57,2.8989]
[1729846042579,7.0828,172.59,172.5,4.6]
[1729846042783,2.4828,172.59,172.56,2.8991]
[1729846042987,7.0828,172.59,172.56,2.8991]
[1729846043386,7.0828,172.59,172.55,2.8991]
[1729846043587,7.0828,172.59,172.5,4.6]
[1729846044087,7.0828,172.59,172.52,2.8996]
[1729846044294,7.0828,172.59,172.5,4.6]
[1729846044489,7.0828,172.59,172.5,6.0499179]
[1729846044490,2.4828,172.59,172.5,6.0499179]
[1729846045594,2.4828,172.59,172.5,4.6]
[1729846046297,2.4828,172.59,172.55,2.8991]
[1729846046992,5.3814,172.59,172.55,2.8991]
[1729846047189,12.53269763,172.58,172.55,2.8991]
[1729846047388,12.53269763,172.58,172.54,2.8994]
[1729846047793,15.43149763,172.58,172.5,4.6]
[1729846047997,15.43149763,172.58,172.54,2.8994]
[1729846048201,12.53269763,172.58,172.5,4.6]
[1729846048495,2.4828,172.59,172.5,4.6]
[1729846048496,2.4828,172.59,172.55,2.8991]
[1729846049694,4.6,172.61,172.57,2.8989]
[1729846049994,4.6,172.61,172.52,12.53269763]
[1729846050500,4.6,172.62,172.58,2.8986]
[1729846051499,2.8986,172.59,172.51,1.3042]
[1729846051894,12.53269763,172.61,172.51,1.3042]
[1729846052587,2.8985,172.6,172.55,2.8991]
[1729846053888,5.3977,172.6,172.55,2.8991]
[1729846054596,2.4992,172.6,172.55,2.8991]
[1729846054801,12.53269763,172.58,172.55,2.8991]
[1729846054996,17.13269763,172.58,172.55,2.8991]
[1729846062392,8.02188448,172.57,172.55,2.8991]
[1729846064003,10.92088448,172.57,172.47,1.1924]
[1729846064203,8.02188448,172.53,172.48,8.02188448]
[1729846064694,8.02188448,172.52,172.47,1.1924]
[1729846065698,4.63,172.51,172.47,1.1924]
[1729846067401,4.63,172.51,172.5,2.9]
[1729846068205,4.63,172.51,172.48,2.9003]
[1729846068400,4.63,172.51,172.42,4.6]
[1729846068401,8.02188448,172.49,172.43,8.02188448]
[1729846069408,8.02188448,172.49,172.44,2.901]
[1729846069606,8.02188448,172.49,172.43,9.47241807]
[1729846069914,8.02188448,172.47,172.42,8.02188448]
[1729846070204,8.02188448,172.45,172.42,1.45053359]
[1729846070394,8.02188448,172.45,172.4,1.45053359]
[1729846070597,8.02188448,172.43,172.4,1.45053359]
[1729846070794,8.02188448,172.43,172.39,14.01241807]
[1729846070998,8.02188448,172.43,172.39,14.01270895]
[1729846071406,8.02188448,172.45,172.42,2.9014]
[1729846071707,8.02188448,172.47,172.41,8.02188448]
[1729846072506,8.02188448,172.47,172.45,2.9008]
[1729846074412,8.02188448,172.47,172.41,8.02188448]
[1729846076205,4.54,172.49,172.42,8.02188448]
[1729846076400,8.02188448,172.48,172.42,8.02188448]
[1729846076702,8.02188448,172.48,172.47,2.9006]
[1729846085110,14.47188448,172.48,172.47,2.9006]
[1729846086409,6.45,172.48,172.47,10.92248448]
[1729846086917,11.08,172.48,172.47,10.92248448]
[1729846091218,11.08,172.48,172.47,2.9006]
[1729846092620,19.10188448,172.48,172.47,2.9006]
[1729846093515,19.10188448,172.48,172.46,2.9008]
[1729846093715,23.73188448,172.48,172.43,1.45064314]
[1729846094023,23.73188448,172.48,172.44,1.45064314]
[1729846094321,23.73188448,172.48,172.42,8.02188448]
[1729846094524,23.73188448,172.48,172.43,1.45066052]
[1729846094719,23.73188448,172.48,172.44,1.45066052]
[1729846095016,23.73188448,172.48,172.42,8.02188448]
[1729846095218,23.73188448,172.48,172.43,1.45067342]
[1729846095420,8.02188448,172.47,172.44,1.45067342]
[1729846095616,8.02188448,172.47,172.44,2.9011]
[1729846096124,8.02188448,172.45,172.39,5.7488]
[1729846096331,8.02188448,172.44,172.4,1.45077089]
[1729846096527,8.02188448,172.44,172.41,1.45077089]
[1729846096822,8.02188448,172.44,172.42,1.45077089]
[1729846097026,15.71,172.48,172.43,8.02188448]
[1729846097222,15.71,172.48,172.44,1.4507525]
[1729846097423,15.71,172.48,172.47,2.9006]
[1729846097828,15.71,172.48,172.47,4.3511363]
[1729846098826,15.71,172.48,172.47,4.35103544]
[1729846104029,15.71,172.48,172.47,2.9006]
[1729846107233,23.73188448,172.48,172.47,2.9006]
[1729846110439,23.73188448,172.48,172.4,4.54]
[1729846110629,8.02188448,172.45,172.41,1.45070186]
[1729846110832,8.02188448,172.46,172.45,2.9009]
[1729846112438,4.63,172.48,172.47,2.9006]
[1729846118135,9.65,172.48,172.47,2.9006]
[1729846120252,9.65,172.48,172.47,4.35116035]
[1729846121859,9.65,172.48,172.47,2.9006]
[1729846122060,9.65,172.48,172.47,4.35115148]
[1729846125760,9.65,172.48,172.47,2.9006]
[1729846126057,9.65,172.48,172.47,4.35115073]
[1729846127366,17.67188448,172.48,172.47,1.45055073]
[1729846128262,17.67188448,172.48,172.47,4.35115073]
[1729846131251,17.67188448,172.48,172.47,1.45055073]
[1729846131863,17.67188448,172.48,172.47,4.35115073]
[1729846133158,17.67188448,172.48,172.47,2.9006]
[1729846133663,17.67188448,172.48,172.47,4.35128488]
[1729846134772,9.65,172.48,172.47,4.35128488]
[1729846134954,17.67188448,172.48,172.47,4.35128488]
[1729846136061,9.65,172.48,172.47,4.35128488]
[1729846140667,9.65,172.48,172.47,2.9006]
[1729846140867,9.65,172.48,172.47,4.35116106]
[1729846143759,17.67188448,172.48,172.47,1.45056106]
[1729846144371,17.67188448,172.48,172.45,2.9009]
[1729846144565,2.9001,172.5,172.47,1.4506789]
[1729846144772,2.9001,172.5,172.46,1.4506789]
[1729846145069,2.9001,172.5,172.47,1.4506789]
[1729846145271,2.9001,172.5,172.48,1.4506789]
[1729846145470,2.9001,172.5,172.49,1.4506789]
[1729846145671,10.92198448,172.5,172.49,1.4506789]
[1729846148864,8.02188448,172.5,172.49,1.4506789]
[1729846149072,10.92198448,172.5,172.49,1.4506789]
[1729846151175,8.02188448,172.5,172.49,1.4506789]
[1729846151572,8.02188448,172.5,172.47,2.9004]
[1729846151774,8.02188448,172.48,172.47,2.9004]
[1729846151975,8.02188448,172.48,172.47,4.35097094]
[1729846155285,8.02188448,172.48,172.47,2.9004]
[1729846155481,8.02188448,172.48,172.47,4.3510003]
[1729846156976,8.02188448,172.49,172.47,1.4506003]
[1729846157179,8.02188448,172.49,172.48,4.3510003]
[1729846158686,8.02188448,172.49,172.48,1.4506003]
[1729846161284,10.92218448,172.49,172.48,1.4506003]
[1729846161884,8.02188448,172.49,172.48,1.4506003]
[1729846162683,8.02188448,172.49,172.48,1.45069945]
[1729846163886,8.02188448,172.49,172.46,2.9007]
[1729846164087,4.52,172.5,172.46,2.9007]
[1729846164285,8.02188448,172.47,172.46,2.9007]
[1729846167293,2.9003,172.49,172.46,2.9007]
[1729846167601,8.02188448,172.47,172.46,2.9007]
[1729846168093,8.02188448,172.47,172.44,2.901]
[1729846168293,8.02188448,172.45,172.44,2.901]
[1729846168594,8.02188448,172.45,172.42,2.9013]
[1729846168781,8.02188448,172.43,172.42,2.9013]
[1729846171283,12.19188448,172.43,172.42,2.9013]
[1729846172193,4.17,172.43,172.42,2.9013]
[1729846172493,12.19188448,172.43,172.42,2.9013]
[1729846172891,4.17,172.43,172.42,2.9013]
[1729846173086,12.19188448,172.43,172.42,2.9013]
[1729846174891,12.19188448,172.43,172.39,1.2088]
[1729846175087,12.19188448,172.43,172.41,2.9016]
[1729846175288,12.19188448,172.43,172.28,8.64722077]
[1729846175598,8.02188448,172.41,172.36,8.02188448]
[1729846175896,8.02188448,172.41,172.33,2.4893]
[1729846176083,8.02188448,172.41,172.35,8.02188448]
[1729846177384,8.02188448,172.41,172.4,2.9018]
[1729846182405,8.02188448,172.41,172.35,8.02188448]
[1729846182617,8.02188448,172.39,172.35,8.02188448]
[1729846183006,8.02188448,172.39,172.34,4.52]
[1729846183303,8.02188448,172.39,172.34,12.54188448]
[1729846183603,8.02188448,172.39,172.38,2.9021]
[1729846186305,12.66188448,172.39,172.38,2.9021]
[1729846187800,4.64,172.39,172.38,2.9021]
[1729846194312,12.66188448,172.39,172.38,2.9021]
[1729846194509,12.66188448,172.39,172.34,4.52]
[1729846194510,12.66188448,172.39,172.33,2.4893]
[1729846194707,4.64,172.39,172.36,2.9025]
[1729846194911,8.02188448,172.37,172.36,2.9025]
[1729846195408,8.02188448,172.37,172.29,1.1885]
[1729846195714,8.02188448,172.35,172.34,2.9026]
[1729846198405,9.16,172.39,172.29,10.44218448]
[1729846198604,9.16,172.39,172.35,2.9026]
[1729846198808,8.02188448,172.36,172.35,2.9026]
[1729846200613,9.16,172.39,172.36,2.9023]
[1729846200815,8.02188448,172.37,172.36,2.9023]
[1729846201916,4.64,172.39,172.38,2.9021]
[1729846210029,12.66188448,172.39,172.38,2.9021]
[1729846210227,12.66188448,172.39,172.29,2.4203]
[1729846210429,8.02188448,172.37,172.36,2.9024]
[1729846210622,7.0369,172.45,172.36,2.9024]
[1729846210819,8.02188448,172.37,172.36,2.9024]
[1729846211430,8.02188448,172.37,172.32,8.02188448]
[1729846212431,8.02188448,172.37,172.36,2.9023]
[1729846212636,4.52,172.41,172.34,8.02188448]
[1729846212836,8.02188448,172.4,172.34,12.54188448]
[1729846213940,8.02188448,172.4,172.38,2.902]
[1729846215441,8.02188448,172.4,172.34,4.52]
[1729846215641,7.4211,172.44,172.39,2.9019]
[1729846215830,337.0,172.55,172.38,8.02188448]
[1729846216033,8.02188448,172.44,172.42,2.9013]
[1729846216236,8.02188448,172.44,172.38,8.02188448]
[1729846216741,8.02188448,172.44,172.42,2.9014]
[1729846217036,7.4206,172.47,172.36,8.02188448]
[1729846217037,8.02188448,172.43,172.36,8.02188448]
[1729846217237,8.02188448,172.4,172.37,4.52]
[1729846217739,8.02188448,172.4,172.35,2.4586]
[1729846218333,8.02188448,172.4,172.39,2.9019]
[1729846220137,8.02188448,172.41,172.36,8.02188448]
[1729846220342,8.02188448,172.41,172.4,2.9017]
[1729846220544,8.02188448,172.41,172.36,8.02188448]
[1729846220744,4.52,172.43,172.36,8.02188448]
[1729846220941,8.02188448,172.41,172.35,10.48048448]
[1729846221245,8.02188448,172.39,172.36,2.9024]
[1729846221547,8.02188448,172.38,172.36,2.9024]
[1729846221744,2.5318,172.42,172.39,2.9019]
[1729846221942,5.7183,172.43,172.39,2.9019]
[1729846222245,8.02188448,172.4,172.39,2.9019]
[1729846225243,8.02188448,172.4,172.36,2.9023]
[1729846225442,8.02188448,172.38,172.36,2.9023]
[1729846227947,2.3979,172.42,172.33,8.02188448]
[1729846228247,8.02188448,172.39,172.38,2.9021]
[1729846228645,12.66188448,172.39,172.38,2.9021]
[1729846230552,4.64,172.39,172.38,2.9021]
[1729846231043,4.52,172.48,172.44,2.9009]
[1729846231247,2.416,172.49,172.42,8.02188448]
[1729846231553,8.02188448,172.47,172.42,8.02188448]
[1729846231948,8.02188448,172.47,172.43,2.9012]
[1729846232148,5.7568,172.51,172.45,8.02188448]
[1729846232341,8.02188448,172.53,172.46,8.02188448]
[1729846232542,2.416,172.58,172.48,8.02188448]
[1729846232543,8.02188448,172.54,172.48,8.02188448]
[1729846233051,8.02188448,172.54,172.5,2.9]
[1729846233258,8.02188448,172.53,172.5,2.9]
[1729846236853,8.02188448,172.54,172.53,2.8995]
[1729846238045,4.52,172.56,172.53,2.8995]
[1729846238341,8.02188448,172.55,172.53,2.8995]
[1729846242243,2.8989,172.57,172.48,2.9003]
[1729846242244,2.8997,172.53,172.48,2.9003]
[1729846242450,8.02188448,172.51,172.44,8.02188448]
[1729846243360,8.02188448,172.51,172.46,2.9008]
[1729846243550,8.02188448,172.48,172.38,2.504]
[1729846243854,2.95191501,172.57,172.38,2.504]
[1729846243855,8.02188448,172.46,172.4,8.02188448]
[1729846244252,8.02188448,172.46,172.44,2.901]
[1729846245261,8.02188448,172.45,172.43,2.9012]
[1729846245552,8.02188448,172.45,172.39,12.54188448]
[1729846245959,8.02188448,172.45,172.42,2.9013]
[1729846248555,8.02188448,172.45,172.43,2.9012]
[1729846248752,8.02188448,172.45,172.39,12.54188448]
[1729846249149,8.02188448,172.45,172.42,2.9013]
[1729846250550,8.02188448,172.43,172.42,2.9013]
[1729846252157,8.02188448,172.43,172.38,13.76818448]
[1729846252357,8.02188448,172.43,172.41,2.9016]
[1729846252952,8.02188448,172.43,172.41,2.9015]
[1729846253151,8.02188448,172.43,172.38,13.76818448]
[1729846253356,8.02188448,172.43,172.38,4.52]
[1729846253558,8.02188448,172.43,172.41,2.9015]
[1729846254563,8.02188448,172.43,172.42,2.9014]
[1729846260767,3.7182,172.49,172.39,8.02188448]
[1729846260968,3.7182,172.49,172.42,8.02188448]
[1729846261163,8.02188448,172.48,172.43,8.02188448]
[1729846261371,8.02188448,172.48,172.47,2.9006]
[1729846261568,9.27068448,172.49,172.44,8.02188448]
[1729846261955,9.27068448,172.49,172.48,2.9004]
[1729846262773,1.2488,172.49,172.48,2.9004]
[1729846263069,1.2488,172.49,172.42,4.52]
[1729846263070,8.02188448,172.51,172.46,8.02188448]
[1729846265161,4.52,172.53,172.49,2.9001]
[1729846265472,4.52,172.53,172.46,8.02188448]
[1729846265672,1.3071,172.54,172.47,8.02188448]
[1729846265974,8.02188448,172.54,172.53,2.8996]
[1729846268069,5.7,172.58,172.56,2.8989]
[1729846268070,8.02188448,172.57,172.56,2.8989]
[1729846269381,4.63,172.57,172.56,2.8989]
[1729846269682,12.65188448,172.57,172.56,2.8989]
[1729846270379,4.63,172.57,172.56,2.8989]
[1729846271973,9.87,172.57,172.56,2.8989]
[1729846276892,1.18,172.58,172.55,8.02188448]
[1729846277192,2.481,172.64,172.57,8.02188448]
[1729846277390,8.02188448,172.69,172.63,8.02188448]
[1729846277599,1.2925,172.68,172.63,8.02188448]
[1729846277992,1.2925,172.68,172.67,2.8972]
[1729846278188,4.52,172.74,172.66,8.02188448]
[1729846278189,8.02188448,172.72,172.66,8.02188448]
[1729846278794,5.96,172.71,172.68,2.8969]
[1729846279197,13.98188448,172.71,172.68,2.8969]
[1729846280301,5.96,172.71,172.66,8.02188448]
[1729846280494,5.96,172.71,172.7,2.8967]
[1729846282497,13.98188448,172.71,172.62,4.52]
[1729846282798,13.98188448,172.71,172.55,5.7984]
[1729846283002,8.02188448,172.69,172.67,2.8972]
[1729846284004,5.96,172.71,172.67,2.8972]
[1729846284205,5.96,172.71,172.64,8.02188448]
[1729846284206,8.02188448,172.7,172.64,8.02188448]
[1729846284390,8.02188448,172.7,172.68,2.8971]
[1729846287106,4.61,172.69,172.68,2.8971]
[1729846290904,4.61,172.69,172.68,10.91898448]
[1729846291307,5.96,172.71,172.7,2.8967]
[1729846291507,5.96,172.71,172.7,10.91858448]
[1729846292010,5.96,172.71,172.7,2.8967]
[1729846292311,5.96,172.71,172.69,2.8968]
[1729846292511,8.02188448,172.73,172.69,2.8968]
[1729846292701,8.02188448,172.71,172.69,2.8968]
[1729846293103,8.02188448,172.71,172.67,2.8972]
[1729846293302,4.5,172.75,172.65,8.02188448]
[1729846293506,8.02188448,172.71,172.65,8.02188448]
[1729846293710,8.02188448,172.71,172.69,2.8969]
[1729846294107,8.02188448,172.7,172.62,4.5]
[1729846294309,4.5,172.71,172.62,4.5]
[1729846294915,7.3967,172.71,172.62,4.5]
[1729846295317,2.8972,172.68,172.63,2.8978]
[1729846295513,12.51705764,172.69,172.57,12.51705764]
[1729846295514,4.5,172.67,172.57,12.51705764]
[1729846295816,19.91435764,172.67,172.62,2.8979]
[1729846296407,4.5,172.66,172.62,2.8979]
[1729846296614,12.51705764,172.65,172.61,2.8981]
[1729846296819,12.51705764,172.65,172.54,12.51705764]
[1729846297210,4.5,172.66,172.57,12.51705764]
[1729846297412,4.5,172.66,172.59,12.51705764]
[1729846299317,4.5,172.66,172.64,2.8977]
[1729846300720,4.5,172.66,172.61,2.8982]
[1729846300910,4.5,172.66,172.59,12.51705764]
[1729846301507,4.5,172.66,172.65,2.8976]
[1729846301914,4.5,172.69,172.65,2.8976]
[1729846302213,7.3969,172.69,172.59,12.51705764]
[1729846303819,12.51705764,172.67,172.63,2.8978]
[1729846306411,17.01705764,172.67,172.6,2.8984]
[1729846306614,17.01705764,172.67,172.57,4.5]
[1729846306818,4.5,172.67,172.58,12.51705764]
[1729846307418,12.51705764,172.69,172.65,2.8976]
[1729846307419,4.5,172.68,172.65,2.8976]
[1729846309330,12.51705764,172.67,172.56,12.51705764]
[1729846309627,12.51705764,172.67,172.57,4.5]
[1729846309826,4.3,172.66,172.57,4.5]
[1729846310024,4.3,172.66,172.63,2.8978]
[1729846311425,4.3,172.66,172.57,4.5]
[1729846311927,4.3,172.66,172.59,12.51705764]
[1729846313225,4.3,172.66,172.64,2.8976]
[1729846314024,4.3,172.66,172.65,1.1942]
[1729846317226,4.3,172.66,172.65,4.0918]
[1729846318728,4.3,172.66,172.65,1.1942]
[1729846321039,4.3,172.66,172.65,4.0918]
[1729846325945,4.3,172.66,172.65,1.1942]
[1729846326553,4.3,172.66,172.65,4.0918]
[1729846327254,4.3,172.66,172.65,1.1942]
[1729846327647,4.3,172.66,172.65,4.0918]
[1729846333556,4.3,172.66,172.65,1.1942]
[1729846335270,4.3,172.66,172.65,4.0918]
[1729846339363,4.3,172.66,172.65,16.60885764]
[1729846339564,4.5,172.77,172.67,12.51705764]
[1729846339771,12.51705764,172.78,172.68,4.5]
[1729846339963,17.01705764,172.78,172.68,4.5]
[1729846340158,17.01705764,172.78,172.73,2.8961]
[1729846340771,19.91255764,172.78,172.73,2.8961]
[1729846341267,2.8958,172.76,172.71,2.8964]
[1729846341467,12.51705764,172.74,172.65,1.1942]
[1729846341673,17.01705764,172.74,172.65,1.1942]
[1729846341973,19.91315764,172.74,172.69,2.8969]
[1729846342269,17.01705764,172.74,172.65,1.1942]
[1729846342670,17.01705764,172.74,172.69,2.8967]
[1729846343067,17.01705764,172.74,172.65,1.1942]
[1729846343271,17.01705764,172.74,172.67,2.8971]
[1729846343469,17.01705764,172.74,172.65,1.1942]
[1729846344267,2.8963,172.73,172.68,2.8969]
[1729846344468,2.8963,172.73,172.65,1.1942]
[1729846344469,12.51705764,172.71,172.65,1.1942]
[1729846344962,17.01705764,172.71,172.65,1.1942]
[1729846345163,2.8968,172.7,172.65,1.1942]
[1729846345870,12.51705764,172.67,172.65,1.1942]
[1729846347061,19.91445764,172.67,172.65,1.1942]
[1729846347267,17.01705764,172.67,172.65,1.1942]
[1729846348871,2.8974,172.66,172.65,1.1942]
[1729846349171,17.01705764,172.67,172.65,1.1942]
[1729846349979,19.91445764,172.67,172.65,1.1942]
[1729846350875,17.01705764,172.67,172.65,4.0917]
[1729846352675,17.01705764,172.67,172.65,1.1942]
[1729846352676,19.91435764,172.67,172.65,1.1942]
[1729846352977,19.91435764,172.67,172.63,2.8978]
[1729846353364,1.2879,172.7,172.58,12.51705764]
[1729846353573,7.3969,172.69,172.65,2.8975]
[1729846355272,12.51705764,172.7,172.67,2.8972]
[1729846355578,17.01705764,172.7,172.61,4.5]
[1729846355972,19.91385764,172.7,172.66,2.8973]
[1729846356167,19.91385764,172.7,172.61,4.5]
[1729846356375,4.63,172.69,172.61,4.5]
[1729846356574,4.63,172.69,172.66,2.8973]
[1729846357070,4.63,172.69,172.61,4.5]
[1729846357471,7.527,172.69,172.64,2.8976]
[1729846358079,7.527,172.69,172.61,4.5]
[1729846358471,2.8971,172.68,172.61,4.5]
[1729846359274,2.8973,172.67,172.63,2.8979]
[1729846359477,12.51705764,172.68,172.58,4.5]
[1729846359774,12.51705764,172.68,172.59,4.5]